fUSD/lending_fUSD_20241109
["ID","MTS","AMOUNT","RATE_DAILY","PERIOD"]
[341736228,1731165003626,127.57836853,0.00018526,2]
[341736229,1731165003794,150.0,0.00018526,2]
[341736230,1731165004524,150.0,0.00018526,2]
[341736231,1731165004581,150.0,0.00018526,2]
[341736232,1731165004679,269.44012651,0.00018526,2]
[341736233,1731165029859,150.0,0.00018534,2]
[341736240,1731165032347,-203.5995,0.00021702,2]
[341736242,1731165032357,-332.7155,0.0002179,2]
[341736243,1731165032367,-158.59,0.00022982,2]
[341736244,1731165032375,-1943.02,0.00026647,2]
[341736245,1731165032385,-485.66804926,0.00027566,2]
[341736246,1731165032395,-152.0,0.00027666,3]
[341736247,1731165032404,-738.2367173,0.0002795,2]
[341736248,1731165032413,-1034.4,0.0002795,2]
[341736249,1731165032423,-367.7,0.00028076,2]
[341736250,1731165032432,-666.027,0.00028076,2]
[341736251,1731165032441,-999.99,0.00028076,2]
[341736252,1731165032450,-325.5,0.00028076,2]
[341736253,1731165032460,-841.32073985,0.00028229,2]
[341736254,1731165032471,-841.32073985,0.0002824,2]
[341736255,1731165032482,-74.7285244,0.00028243,2]
[341736256,1731165032527,-766.59221545,0.00028243,2]
[341736257,1731165032537,-841.32073985,0.00028244,2]
[341736258,1731165032548,-841.32073985,0.00028274,2]
[341736259,1731165032560,-150.99,0.00028306,2]
[341736260,1731165032569,-1034.4,0.00028399,2]
[341736261,1731165032578,-200.0,0.00028528,7]
[341736262,1731165032590,-1000.0,0.00028587,2]
[341736263,1731165032604,-352.54,0.0002862,2]
[341736264,1731165032613,-2787.00112695,0.00028645,2]
[341736265,1731165032650,-5861.13307305,0.00028645,2]
[341736266,1731165032660,-244.21,0.00028661,2]
[341736267,1731165032672,-164.48,0.00028675,2]
[341736268,1731165032681,-201.95945684,0.00028718,2]
[341736272,1731165038422,-111.48054316,0.00028718,2]
[341736273,1731165038431,-303.59,0.00028733,2]
[341736274,1731165038441,-1710.8282638,0.00028746,2]
[341736275,1731165038622,-17929.0917362,0.00028746,2]
[341736276,1731165038631,-1000.0,0.00028798,2]
[341736277,1731165038643,-214.04,0.00028798,2]
[341736278,1731165038651,-543.58,0.00028803,120]
[341736279,1731165038661,-250.0,0.00028818,2]
[341736280,1731165038670,-161.16,0.00028826,30]
[341736281,1731165038679,-1034.4,0.00028848,2]
[341736282,1731165038691,-1943.02,0.00028911,2]
[341736283,1731165038700,-846.4,0.00029,2]
[341736284,1731165038709,-151.03321839,0.00029,2]
[341736285,1731165038719,-196.04,0.00029059,2]
[341736286,1731165038728,-183.41,0.00029082,2]
[341736287,1731165038737,-1034.4,0.00029297,2]
[341736288,1731165038746,-500.0,0.00029354,120]
[341736289,1731165038755,-152.0,0.00029365,4]
[341736290,1731165038765,-6197.0,0.0002939,30]
[341736291,1731165038774,-158.162,0.0002939,2]
[341736292,1731165038783,-1034.4,0.00029746,2]
[341736293,1731165038792,-436.152,0.00029753,15]
[341736294,1731165038801,-244.477,0.00029818,2]
[341736295,1731165038811,-150.0,0.00029866,2]
[341736296,1731165038820,-150.0,0.00029869,2]
[341736297,1731165038830,-150.0,0.00029869,2]
[341736298,1731165038839,-150.0,0.00029869,2]
[341736299,1731165038848,-150.0,0.00029874,2]
[341736300,1731165038857,-150.0,0.00029884,2]
[341736301,1731165038866,-150.0,0.00029884,2]
[341736302,1731165038875,-150.0,0.00029885,2]
[341736303,1731165038884,-1000.0,0.000299,2]
[341736304,1731165038893,-4014.0,0.000299,30]
[341736305,1731165038902,-150.0,0.00029906,2]
[341736306,1731165038912,-150.0,0.0002991,2]
[341736307,1731165038921,-150.0,0.00029929,2]
[341736308,1731165038930,-150.0,0.00029934,2]
[341736309,1731165038940,-150.0,0.00029947,2]
[341736310,1731165038949,-150.0,0.00029947,2]
[341736311,1731165038959,-150.0,0.00029961,2]
[341736312,1731165038968,-150.0,0.00029962,2]
[341736313,1731165038978,-150.0,0.00029963,2]
[341736314,1731165038987,-700.0,0.00029968,11]
[341736315,1731165038997,-700.0,0.00029968,11]
[341736316,1731165039006,-700.0,0.00029968,11]
[341736317,1731165039015,-700.0,0.00029968,11]
[341736318,1731165039024,-787.50078262,0.00029968,11]
[341736319,1731165039033,-150.0,0.00029972,2]
[341736320,1731165039042,-150.0,0.00029973,2]
[341736321,1731165039051,-150.0,0.00029976,2]
[341736322,1731165039060,-10512.3024,0.0002998,2]
[341736323,1731165039069,-316.2431,0.0002998,2]
[341736324,1731165039078,-338.416,0.00029982,24]
[341736325,1731165039087,-150.0,0.00029984,2]
[341736326,1731165039096,-166.2,0.00029988,2]
[341736327,1731165039105,-150.0,0.00029989,2]
[341736328,1731165039115,-150.0,0.00029993,2]
[341736329,1731165039124,-490.0,0.0003,2]
[341736330,1731165039133,-2000.0,0.0003,2]
[341736331,1731165039142,-150.0,0.00030013,2]
[341736332,1731165039151,-150.0,0.00030014,2]
[341736333,1731165039162,-150.0,0.0003002,2]
[341736334,1731165039171,-150.0,0.0003002,2]
[341736335,1731165039180,-150.0,0.00030034,2]
[341736336,1731165039191,-16075.52731136,0.00030035,2]
[341736337,1731165039200,-16075.52731135,0.00030036,2]
[341736338,1731165039209,-16075.52731135,0.00030036,2]
[341736339,1731165039218,-150.0,0.00030038,2]
[341736340,1731165039227,-1500.0,0.00030054,2]
[341736341,1731165039236,-310.37199487,0.00030055,7]
[341736342,1731165039245,-150.0,0.00030055,7]
[341736343,1731165039254,-153.13747699,0.00030055,7]
[341736344,1731165039263,-151.58568717,0.00030055,7]
[341736345,1731165039272,-150.0,0.00030055,7]
[341736346,1731165039281,-202.24453151,0.00030055,7]
[341736347,1731165039290,-150.0,0.00030055,7]
[341736348,1731165039299,-150.0,0.00030055,7]
[341736349,1731165039308,-150.0,0.00030055,7]
[341736350,1731165039317,-150.0,0.00030055,7]
[341736351,1731165039326,-175.28502878,0.0003007,2]
[341736352,1731165039336,-500.0,0.00030073,2]
[341736353,1731165039345,-500.0,0.00030079,2]
[341736354,1731165039355,-500.0,0.00030079,2]
[341736355,1731165039363,-500.0,0.00030079,2]
[341736356,1731165039372,-500.0,0.00030079,2]
[341736357,1731165039382,-347.1627633,0.00030079,2]
[341736358,1731165039391,-500.0,0.00030079,2]
[341736359,1731165039400,-500.0,0.00030079,2]
[341736360,1731165039409,-500.0,0.00030079,2]
[341736361,1731165039418,-500.0,0.00030079,2]
[341736362,1731165039427,-500.0,0.00030079,2]
[341736363,1731165039437,-500.0,0.00030079,2]
[341736364,1731165039446,-500.0,0.00030079,2]
[341736365,1731165039455,-510.3,0.00030079,2]
[341736366,1731165039464,-68385.4659375,0.0003008,4]
[341736367,1731165039532,-1.42903861,0.0003008,4]
[341736368,1731165039543,-411.56342073,0.0003008,4]
[341736371,1731165040478,-267.70604328,0.0003008,4]
[341736375,1731165043872,-46069.23119344,0.0003008,4]
[341736377,1731165043882,-588.6418434,0.0003008,4]
[341736378,1731165043891,-1702176.95187518,0.0003008,2]
[341736387,1731165046420,-311.51268869,0.0002998,2]
[341736388,1731165071577,150.0,0.00018537,2]
[341736390,1731165271938,150.0,0.00017,2]
[341736391,1731165271961,52.0,0.00017,2]
[341736395,1731165459187,150.0,0.00015342,2]
[341736396,1731165459210,8.61,0.00015342,2]
[341736402,1731165907773,446835.53488722,0.00016,2]
[341736403,1731165907813,7401860.44131909,0.00016,2]
[341736404,1731165936439,150.0,9e-05,2]
[341736405,1731165936462,150.0,9e-05,2]
[341736406,1731165936485,150.0,9e-05,2]
[341736407,1731165936507,150.0,9e-05,2]
[341736408,1731165936535,142.3822493,9e-05,2]
[341736409,1731165954052,150.0,0.0001892,2]
[341736410,1731165954074,150.0,0.0001892,2]
[341736411,1731165954098,150.0,0.0001892,2]
[341736412,1731165954119,150.0,0.0001892,2]
[341736413,1731165954141,150.0,0.0001892,2]
[341736414,1731165954163,150.0,0.0001892,2]
[341736415,1731165954188,150.0,0.0001892,2]
[341736416,1731165954212,150.0,0.0001892,2]
[341736417,1731165954235,150.0,0.0001892,2]
[341736418,1731165954532,150.0,0.0001892,2]
[341736419,1731165954555,150.0,0.0001892,2]
[341736420,1731165954576,150.0,0.0001892,2]
[341736421,1731165954598,150.0,0.0001892,2]
[341736422,1731165954619,290.17469228,0.0001892,2]
[341736423,1731165954639,15722.0264787,0.0001892,2]
[341736424,1731165983480,500.0,0.00015973,2]
[341736425,1731165983511,1040.62987563,0.00017342,2]
[341736426,1731165990972,300.0,0.00015,2]
[341736428,1731166077532,150.0,0.00018,2]
[341736429,1731166077554,150.0,0.00018,2]
[341736430,1731166077576,150.0,0.00018,2]
[341736431,1731166077598,150.0,0.00018,2]
[341736432,1731166077620,1129.42935556,0.00018,2]
[341736434,1731166082611,550865.41107872,0.00015,2]
[341736435,1731166108212,150.0,0.00018632,2]
[341736436,1731166110522,666.4876655,0.00015235,2]
[341736438,1731166123553,1043.6597623,0.00018,2]
[341736440,1731166172332,177.07,0.00015342,2]
[341736449,1731166202593,150.0,0.00015342,2]
[341736450,1731166202896,150.0,0.00015342,2]
[341736451,1731166203055,150.0,0.00015342,2]
[341736453,1731166203507,150.0,0.00015342,2]
[341736454,1731166203728,150.0,0.00015342,2]
[341736455,1731166203908,150.0,0.00015342,2]
[341736456,1731166204095,256.15639945,0.00015342,2]
[341736459,1731166231512,-329.065,0.00020867,2]
[341736460,1731166231522,-619.56794843,0.00020905,2]
[341736461,1731166231531,-450.0,0.00021,2]
[341736462,1731166231540,-2056.45166357,0.00021,7]
[341736463,1731166231549,-164.5325,0.00021005,2]
[341736464,1731166231558,-164.5325,0.0002126,2]
[341736466,1731166231567,-556.131,0.00021481,2]
[341736468,1731166231576,-198.1335,0.00021481,2]
[341736470,1731166231585,-270.189,0.00021682,2]
[341736471,1731166231595,-177.07,0.00021745,2]
[341736472,1731166231603,-1110.48225,0.0002179,2]
[341736473,1731166231613,-261.5365,0.0002184,2]
[341736474,1731166231622,-509.8,0.0002184,2]
[341736475,1731166231631,-6973.52236762,0.00022,2]
[341736476,1731166231640,-244.26838669,0.00022,2]
[341736477,1731166231649,-10748.9337248,0.00022,2]
[341736478,1731166231658,-2406.52429655,0.000225,2]
[341736479,1731166231667,-1915.0,0.000225,2]
[341736480,1731166231677,-500.0,0.00023,2]
[341736481,1731166231686,-550.0,0.00025,2]
[341736482,1731166231695,-400.6717191,0.000253,10]
[341736483,1731166231705,-26236.26294225,0.000256,5]
[341736484,1731166231714,-1845.87,0.00026735,2]
[341736485,1731166231723,-244.21,0.00026834,2]
[341736486,1731166231732,-600.0,0.00027,2]
[341736487,1731166231741,-434.87,0.00027229,120]
[341736488,1731166231751,-1505.38,0.00028003,2]
[341736489,1731166231760,-177.07,0.00028147,2]
[341736490,1731166231769,-1000.0,0.00028314,2]
[341736491,1731166231778,-1505.38,0.00028453,2]
[341736492,1731166231787,-161.16,0.00028598,30]
[341736493,1731166231796,-250.0,0.00028633,2]
[341736494,1731166231805,-214.07,0.00028653,2]
[341736495,1731166231814,-183.41,0.00028811,2]
[341736496,1731166231823,-196.04,0.000289,2]
[341736497,1731166231832,-1505.38,0.00028903,2]
[341736498,1731166231843,-1845.87,0.00028999,2]
[341736499,1731166231852,-1405.13906849,0.00029,2]
[341736500,1731166231943,-5442.90459851,0.00029,2]
[341736501,1731166231984,-2257.956333,0.00029,2]
[341736502,1731166231994,-1572.0436669,0.00029,2]
[341736503,1731166232009,-1427.9563331,0.00029,2]
[341736504,1731166232018,-650.0,0.00029,2]
[341736505,1731166232027,-846.4,0.00029,2]
[341736506,1731166232036,-328.94,0.0002903,2]
[341736507,1731166232045,-158.209,0.0002909,2]
[341736508,1731166232054,-158.95,0.00029106,2]
[341736509,1731166232063,-365.13,0.00029107,120]
[341736510,1731166232072,-280.87241454,0.00029353,2]
[341736512,1731166237718,-285.33454003,0.00028766,2]
[341736513,1731166237728,-1224.50758546,0.00029353,2]
[341736514,1731166237737,-500.0,0.00029435,120]
[341736515,1731166237747,-362.09,0.00029494,2]
[341736516,1731166237756,-166.66,0.00029729,2]
[341736517,1731166237765,-340.86954997,0.0002978,2]
[341736575,1731166238758,-202.23971087,0.0002978,2]
[341736577,1731166238767,-1505.38,0.00029803,2]
[341736579,1731166238776,-150.0,0.00029861,2]
[341736581,1731166238786,-150.0,0.00029863,2]
[341736583,1731166238795,-500.0,0.00029879,2]
[341736585,1731166238803,-500.0,0.00029879,2]
[341736587,1731166238813,-500.0,0.00029879,2]
[341736589,1731166238823,-500.0,0.00029879,2]
[341736591,1731166238832,-187.2284633,0.00029879,2]
[341736593,1731166238842,-500.0,0.00029879,2]
[341736595,1731166238851,-500.0,0.00029879,2]
[341736597,1731166238860,-150.0,0.00029879,2]
[341736599,1731166238869,-244.477,0.0002988,2]
[341736601,1731166238879,-1214.49050358,0.0002988,2]
[341736604,1731166238890,-1505.33902118,0.0002988,2]
[341736606,1731166238902,-4268.39679835,0.0002988,2]
[341736608,1731166238913,-1231.16717689,0.0002988,2]
[341736610,1731166238922,-2061.9435814,0.0002988,2]
[341736614,1731166238950,-339.3,0.0002988,2]
[341736717,1731166239908,-1005.41099667,0.0002988,2]
[341736719,1731166239921,-1457.09960296,0.0002988,2]
[341736721,1731166239935,-2184.76,0.0002988,2]
[341736725,1731166239966,-2266.216955,0.0002988,2]
[341736729,1731166239995,-9939.60982948,0.0002988,2]
[341736736,1731166240045,-6517.16614504,0.0002988,2]
[341736740,1731166240072,-60761.29738945,0.0002988,2]
[341736742,1731166240083,-25645.5811,0.0002988,2]
[341736744,1731166240093,-2500.0,0.0002988,2]
[341736746,1731166240102,-150.0,0.00029881,2]
[341736748,1731166240112,-21253.76116221,0.000299,2]
[341736750,1731166240122,-150.0,0.00029905,2]
[341736752,1731166240132,-150.0,0.0002991,2]
[341736754,1731166240141,-150.0,0.00029914,2]
[341736756,1731166240151,-150.0,0.00029915,2]
[341736758,1731166240160,-150.0,0.00029918,2]
[341736760,1731166240170,-150.0,0.00029936,2]
[341736762,1731166240180,-150.0,0.00029937,2]
[341736764,1731166240190,-150.0,0.00029946,2]
[341736766,1731166240200,-150.0,0.00029951,2]
[341736768,1731166240210,-150.0,0.00029953,2]
[341736770,1731166240219,-150.0,0.00029961,2]
[341736772,1731166240229,-700.0,0.00029968,11]
[341736774,1731166240239,-700.0,0.00029968,11]
[341736777,1731166240249,-700.0,0.00029968,11]
[341736779,1731166240258,-700.0,0.00029968,11]
[341736781,1731166240267,-787.50078262,0.00029968,11]
[341736782,1731166240280,-500.0,0.00029973,2]
[341736783,1731166240289,-504.03366611,0.00029973,5]
[341736784,1731166240298,-150.0,0.00029973,2]
[341736785,1731166240308,-214.75410745,0.00029979,2]
[341736786,1731166240318,-188.48731131,0.0002998,2]
[341736787,1731166240327,-29269.82787304,0.0002998,2]
[341736788,1731166240349,-2692.94884001,0.0002998,2]
[341737019,1731166242639,-2742.14124938,0.0002998,2]
[341737021,1731166242650,-135947.62043757,0.0002998,2]
[341737022,1731166242659,-21688.5691,0.0002998,2]
[341737024,1731166242668,-11736.0731,0.0002998,2]
[341737026,1731166242678,-1000.0,0.0002998,2]
[341737028,1731166242689,-150.0,0.00029985,2]
[341737030,1731166242699,-150.0,0.00029996,2]
[341737032,1731166242709,-150.0,0.00029996,2]
[341737034,1731166242718,-338.416,0.00029997,24]
[341737036,1731166242727,-150.0,0.00029997,2]
[341737038,1731166242737,-610.26233444,0.0003,2]
[341737040,1731166242746,-490.0,0.0003,2]
[341737042,1731166242755,-2000.0,0.0003,2]
[341737044,1731166242765,-150.0,0.0003,2]
[341737046,1731166242774,-3000.0,0.0003,2]
[341737048,1731166242783,-150.0,0.00030002,2]
[341737050,1731166242792,-150.0,0.00030014,2]
[341737052,1731166242802,-150.0,0.00030018,2]
[341737055,1731166242812,-150.0,0.00030036,2]
[341737056,1731166242821,-345.33938859,0.00030036,2]
[341737058,1731166242831,-48226.58193406,0.00030036,2]
[341737060,1731166242840,-2125.89880696,0.00030036,2]
[341737062,1731166242849,-150.0,0.00030041,2]
[341737064,1731166242858,-3076.0,0.0003005,2]
[341737066,1731166242867,-3076.0,0.0003005,2]
[341737068,1731166242877,-3076.0,0.0003005,2]
[341737070,1731166242886,-3076.0,0.0003005,2]
[341737072,1731166242895,-3076.0,0.0003005,2]
[341737074,1731166242904,-3076.0,0.0003005,2]
[341737076,1731166242914,-3076.0,0.0003005,2]
[341737078,1731166242923,-3076.0,0.0003005,2]
[341737080,1731166242932,-3076.0,0.0003005,2]
[341737082,1731166242942,-3076.0,0.0003005,2]
[341737084,1731166242951,-150.0,0.00030066,2]
[341737086,1731166242961,-175.28502878,0.0003007,2]
[341737088,1731166242971,-165.62197258,0.00030073,5]
[341737090,1731166242980,-150.0,0.00030076,2]
[341737092,1731166242989,-150.0,0.00030077,2]
[341737094,1731166243000,-238587.77860837,0.0003008,2]
[341737096,1731166243009,-150.0,0.0003008,2]
[341737098,1731166243019,-150.0,0.00030085,2]
[341737100,1731166243028,-5800.0,0.00030092,2]
[341737102,1731166243037,-150.0,0.00030092,2]
[341737104,1731166243047,-150.0,0.00030094,2]
[341737106,1731166243056,-193.0,0.000301,14]
[341737108,1731166243065,-5800.0,0.000301,2]
[341737110,1731166243074,-201.3,0.000301,2]
[341737112,1731166243083,-790.0,0.000301,18]
[341737114,1731166243092,-299.81023498,0.00030103,2]
[341737115,1731166243101,-150.0,0.00030108,2]
[341737117,1731166243110,-310.37199487,0.0003011,7]
[341737119,1731166243120,-150.0,0.0003011,7]
[341737122,1731166243129,-153.13747699,0.0003011,7]
[341737123,1731166243138,-151.58568717,0.0003011,7]
[341737126,1731166243147,-150.0,0.0003011,7]
[341737128,1731166243157,-202.24453151,0.0003011,7]
[341737129,1731166243167,-150.0,0.0003011,7]
[341737131,1731166243176,-150.0,0.0003011,7]
[341737133,1731166243187,-150.0,0.0003011,7]
[341737135,1731166243196,-150.0,0.0003011,7]
[341737137,1731166243206,-1240.0003862,0.00030115,2]
[341737140,1731166243216,-1171.994051,0.00030115,2]
[341737142,1731166243226,-1103.9877159,0.00030115,2]
[341737144,1731166243235,-1035.9813807,0.00030115,2]
[341737146,1731166243249,-967.9750455,0.00030115,2]
[341737148,1731166243259,-482.1555907,0.00030115,2]
[341737150,1731166243269,-482.1555907,0.00030115,2]
[341737152,1731166243280,-482.1555907,0.00030115,2]
[341737154,1731166243290,-482.1555907,0.00030115,2]
[341737156,1731166243300,-482.1555907,0.00030115,2]
[341737158,1731166243311,-460.1720975,0.00030115,2]
[341737160,1731166243321,-460.1720975,0.00030115,2]
[341737162,1731166243332,-460.1720975,0.00030115,2]
[341737164,1731166243342,-460.1720975,0.00030115,2]
[341737166,1731166243352,-460.1720975,0.00030115,2]
[341737168,1731166243361,-693.6471675,0.00030115,2]
[341737170,1731166243371,-693.6471675,0.00030115,2]
[341737172,1731166243380,-693.6471675,0.00030115,2]
[341737174,1731166243390,-693.6471675,0.00030115,2]
[341737176,1731166243399,-693.6471675,0.00030115,2]
[341737178,1731166243409,-1021.1630091,0.00030115,2]
[341737180,1731166243420,-1021.1630091,0.00030115,2]
[341737182,1731166243431,-1021.1630091,0.00030115,2]
[341737184,1731166243441,-1021.1630091,0.00030115,2]
[341737186,1731166243451,-1021.1630091,0.00030115,2]
[341737188,1731166243460,-150.0,0.00030124,2]
[341737190,1731166243473,-209.0,0.0003013,2]
[341737192,1731166243483,-1500.0,0.0003013,2]
[341737194,1731166243493,-150.0,0.00030132,2]
[341737196,1731166243502,-2331.8294433,0.00030133,2]
[341737198,1731166243511,-200263.60202453,0.00030134,2]
[341737213,1731166243645,-75026.72300794,0.00030134,2]
[341737216,1731166243669,-475.635557,0.00030134,2]
[341737222,1731166243735,-1328.97351581,0.00030134,2]
[341737394,1731166245644,-2137.90186013,0.00030134,2]
[341737423,1731166245946,-763.58,0.00030134,2]
[341737680,1731166322110,300.0,0.00019725,2]
[341737681,1731166373689,150.0,0.00018656,2]
[341737682,1731166441899,300.0,0.00019725,2]
[341737683,1731166696832,2000.0,0.00024,15]
[341737684,1731166727386,2868.1881568,0.00024,15]
[341737685,1731166742552,150.0,0.00019725,2]
[341737686,1731166742578,150.0,0.00019725,2]
[341737688,1731166861449,225.0,0.00019725,2]
[341737689,1731166928256,-160.0,0.00029064,120]
[341737690,1731166928285,-500.0,0.00029572,120]
[341737691,1731166984439,-236.00541156,0.00030135,120]
[341737692,1731166986116,-1023.9,0.00030136,120]
[341737693,1731166986150,-3245.07391044,0.00030254,120]
[341737694,1731166986184,-434.87,0.00030632,120]
[341737695,1731166986220,-1000.0,0.00031506,120]
[341737696,1731166986249,-1023.9,0.00031506,120]
[341737697,1731166986280,-1196.84112149,0.00031945,120]
[341737698,1731166986307,-500.0,0.0003195,120]
[341737699,1731166986340,-151.6,0.000324,120]
[341737700,1731166986366,-1187.80955651,0.000325,120]
[341737701,1731166999889,500.0,0.00029835,120]
[341737702,1731167013824,-500.0,0.00032499,120]
[341737703,1731167013851,-9500.0,0.000325,120]
[341737704,1731167030034,-10000.0,0.000325,120]
[341737706,1731167040394,150.0,0.00015342,2]
[341737707,1731167040419,94.1,0.00015342,2]
[341737708,1731167041405,55.9,0.00019725,2]
[341737709,1731167041429,160.1,0.00019725,2]
[341737720,1731167364655,150.0,0.0002,10]
[341737721,1731167364675,150.0,0.0002,10]
[341737722,1731167364696,214.0,0.0002,10]
[341737723,1731167370059,34.74468989,0.00018748,2]
[341737724,1731167370081,115.25531011,0.00018748,2]
[341737725,1731167401521,150.0,0.00019725,2]
[341737734,1731167431756,-450.0,0.00021,2]
[341737735,1731167431765,-281.35925,0.0002154,2]
[341737736,1731167431775,-197.40775,0.00021682,2]
[341737737,1731167431784,-314.5470442,0.00021733,2]
[341737738,1731167431909,-847.9147058,0.00021733,2]
[341737739,1731167431918,-229.12775,0.00021733,2]
[341737740,1731167431927,-244.1,0.00021745,2]
[341737741,1731167431936,-161.67,0.00021778,2]
[341737742,1731167431945,-251.9292,0.000229,2]
[341737743,1731167431954,-744.43129404,0.00023,2]
[341737744,1731167432032,-713.35,0.00023,2]
[341737745,1731167432063,-454.21870596,0.00023,2]
[341737746,1731167432074,-500.0,0.00023,2]
[341737747,1731167432084,-550.0,0.00025,2]
[341737748,1731167432093,-150.0,0.00026658,2]
[341737749,1731167432102,-1661.28,0.00026673,2]
[341737750,1731167432112,-600.0,0.00027,2]
[341737751,1731167432121,-1370.1669209,0.0002709,3]
[341737752,1731167432133,-1000.0,0.0002709,3]
[341737753,1731167432142,-1000.0,0.0002709,3]
[341737754,1731167432152,-1000.0,0.0002709,3]
[341737755,1731167432161,-1000.0,0.0002709,3]
[341737756,1731167432170,-1000.0,0.0002709,3]
[341737757,1731167432179,-761.65,0.00027148,2]
[341737758,1731167432188,-761.65,0.00027584,2]
[341737759,1731167432198,-360.89,0.00027645,2]
[341737760,1731167432207,-250.0,0.00027783,2]
[341737761,1731167432216,-23322.34278119,0.000278,2]
[341737762,1731167432227,-472.6684602,0.000278,2]
[341737841,1731167438023,-500.0,0.00027799,2]
[341737842,1731167438033,-474.83225187,0.00027799,2]
[341737843,1731167438045,-25.16774813,0.00027799,2]
[341737844,1731167438055,-12126.85908272,0.000278,2]
[341737845,1731167438064,-761.65,0.0002802,2]
[341737846,1731167438073,-244.1,0.00028147,2]
[341737847,1731167438083,-761.65,0.00028456,2]
[341737848,1731167438092,-1000.0,0.0002852,2]
[341737849,1731167438102,-168.13,0.00028524,2]
[341737850,1731167438111,-161.16,0.00028688,30]
[341737851,1731167438121,-23900.0,0.00028766,2]
[341737852,1731167438131,-761.65,0.00028892,2]
[341737853,1731167438140,-250.0,0.00028929,2]
[341737854,1731167438150,-1458.27171382,0.00028937,2]
[341737855,1731167438165,-203.00828618,0.00028937,2]
[341737856,1731167438174,-135.73171382,0.00029,2]
[341737857,1731167438201,-626.02828618,0.00029,2]
[341737859,1731167438211,-650.0,0.00029,2]
[341737861,1731167438220,-29999.99,0.00029009,2]
[341737863,1731167438230,-1119.13,0.00029009,2]
[341737865,1731167438239,-271.91,0.00029009,2]
[341737867,1731167438249,-6365.47,0.00029009,2]
[341737869,1731167438259,-360.89,0.00029028,2]
[341737871,1731167438269,-273.02,0.0002906,2]
[341737873,1731167438278,-761.65,0.00029329,2]
[341737875,1731167438288,-761.65,0.00029765,2]
[341737877,1731167438297,-1000.0,0.0002978,2]
[341737879,1731167438307,-273.8877,0.0002978,2]
[341737881,1731167438316,-24497.6464,0.0002978,2]
[341737883,1731167438326,-1144.9463,0.0002978,2]
[341737885,1731167438336,-2672.6108,0.00029799,2]
[341737887,1731167438346,-500.0,0.00029879,2]
[341737889,1731167438355,-500.0,0.00029879,2]
[341737891,1731167438364,-500.0,0.00029879,2]
[341737893,1731167438374,-500.0,0.00029879,2]
[341737894,1731167438385,-500.0,0.00029879,2]
[341737896,1731167438394,-500.0,0.00029879,2]
[341737899,1731167438404,-500.0,0.00029879,2]
[341737900,1731167438414,-500.0,0.00029879,2]
[341737902,1731167438423,-500.0,0.00029879,2]
[341737904,1731167438433,-500.0,0.00029879,2]
[341737906,1731167438442,-500.0,0.00029879,2]
[341737908,1731167438451,-500.0,0.00029879,2]
[341737910,1731167438461,-500.0,0.00029879,2]
[341737912,1731167438470,-500.0,0.00029879,2]
[341737914,1731167438480,-172.89485326,0.00029879,2]
[341737916,1731167438489,-500.0,0.00029879,2]
[341737918,1731167438499,-2335.3971,0.0002988,2]
[341737920,1731167438508,-28988.7665,0.0002988,2]
[341737922,1731167438517,-27441.2742,0.0002988,2]